fUSD/lending_fUSD_20240519
["ID","MTS","AMOUNT","RATE_DAILY","PERIOD"]
[327497345,1716125493097,-656.36,0.00028835,2]
[327497346,1716125493113,-615.22,0.00028835,2]
[327497347,1716125493128,-810.74,0.00028835,2]
[327497348,1716125493142,-997.13,0.00028835,2]
[327497349,1716125493157,-837.85,0.00028835,2]
[327497350,1716125493174,-674.79,0.00028835,2]
[327497351,1716125493189,-2150.8,0.00028835,2]
[327497352,1716125493342,-827.03,0.00028835,2]
[327497353,1716125493352,-2747.6,0.00028835,2]
[327497354,1716125493362,-1069.79,0.00028835,2]
[327497355,1716125493371,-4457.98,0.00028835,2]
[327497356,1716125493381,-925.95,0.00028835,2]
[327497357,1716125493391,-896.89,0.00028835,2]
[327497358,1716125493401,-997.04,0.00028835,2]
[327497359,1716125493410,-6546.3,0.00028835,2]
[327497360,1716125493420,-744.57,0.00028835,2]
[327497361,1716125493431,-1036.81,0.00028835,2]
[327497362,1716125493441,-500.0,0.00028835,2]
[327497363,1716125493450,-500.0,0.00028835,2]
[327497364,1716125493460,-2745.43,0.00028835,2]
[327497365,1716125493469,-500.0,0.00028835,2]
[327497366,1716125493479,-521.3,0.00028835,2]
[327497367,1716125493488,-1015.07,0.00028835,2]
[327497368,1716125493498,-474.14409693,0.00028836,7]
[327497369,1716125493507,-154.10962397,0.00028836,7]
[327497370,1716125493517,-173.75382498,0.00028836,7]
[327497371,1716125493527,-743.67,0.00028853,2]
[327497372,1716125493536,-474.14409693,0.00028868,7]
[327497373,1716125493546,-154.10962397,0.00028868,7]
[327497374,1716125493556,-173.75382498,0.00028868,7]
[327497375,1716125493565,-156.791667,0.00028871,2]
[327497376,1716125493578,-159.110877,0.00028871,2]
[327497377,1716125493587,-278.336359,0.00028871,2]
[327497378,1716125493596,-168.625639,0.00028871,2]
[327497379,1716125493606,-3218.702548,0.00028871,2]
[327497380,1716125493615,-203.397563,0.00028871,2]
[327497381,1716125493625,-11620.285697,0.00028871,2]
[327497382,1716125493635,-3113.727306,0.00028871,2]
[327497383,1716125493644,-159.697502,0.00028871,2]
[327497384,1716125493654,-187.215959,0.00028871,2]
[327497385,1716125493663,-155.697586,0.00028871,2]
[327497386,1716125493672,-164.95886,0.00028871,2]
[327497387,1716125493682,-204.69719,0.00028871,2]
[327497388,1716125493691,-9517.00699,0.00028871,2]
[327497389,1716125493700,-4113.536787,0.00028871,2]
[327497390,1716125493709,-320.270047,0.00028871,2]
[327497391,1716125493719,-984.13315849,0.00028877,30]
[327497392,1716125493730,-474.14409693,0.000289,7]
[327497393,1716125493739,-154.10962397,0.000289,7]
[327497394,1716125493749,-173.75382498,0.000289,7]
[327497395,1716125493759,-150.0,0.00028912,7]
[327497396,1716125493769,-150.0,0.00028924,7]
[327497397,1716125493778,-474.14409693,0.00028932,7]
[327497398,1716125493788,-154.10962397,0.00028932,7]
[327497399,1716125493798,-173.75382498,0.00028932,7]
[327497400,1716125493808,-474.14409693,0.00028964,7]
[327497401,1716125493817,-154.10962397,0.00028964,7]
[327497402,1716125493829,-173.75382498,0.00028964,7]
[327497403,1716125493838,-984.13315849,0.00028986,30]
[327497404,1716125493847,-474.14409693,0.00028996,7]
[327497405,1716125493856,-154.10962397,0.00028996,7]
[327497406,1716125493866,-173.75382498,0.00028996,7]
[327497407,1716125493875,-155.3173307,0.00029,2]
[327497408,1716125493884,-663.95984857,0.00029,2]
[327497409,1716125493893,-570.59143142,0.00029,2]
[327497410,1716125493903,-900.0,0.00029,30]
[327497411,1716125493913,-459.68011254,0.00029,120]
[327497412,1716125493922,-570.34,0.00029,3]
[327497413,1716125493932,-764.66812019,0.00029,120]
[327497414,1716125493941,-150.0,0.00029,2]
[327497415,1716125493951,-150.0,0.00029,2]
[327497416,1716125493961,-150.0,0.00029027,7]
[327497417,1716125493971,-474.14409693,0.00029028,7]
[327497418,1716125493981,-154.10962397,0.00029028,7]
[327497419,1716125493990,-173.75382498,0.00029028,7]
[327497420,1716125494000,-2000.0,0.00029041,2]
[327497421,1716125494011,-150.0,0.00029044,7]
[327497422,1716125494020,-500.0,0.00029056,2]
[327497423,1716125494030,-500.0,0.00029056,2]
[327497424,1716125494040,-500.0,0.00029056,2]
[327497425,1716125494049,-500.0,0.00029056,2]
[327497426,1716125494059,-500.0,0.00029056,2]
[327497427,1716125494069,-500.0,0.00029056,2]
[327497428,1716125494078,-500.0,0.00029056,2]
[327497429,1716125494088,-500.0,0.00029056,2]
[327497430,1716125494097,-500.0,0.00029056,2]
[327497431,1716125494107,-500.0,0.00029056,2]
[327497432,1716125494116,-500.0,0.00029056,2]
[327497433,1716125494125,-674.97,0.00029056,2]
[327497434,1716125494135,-500.0,0.00029056,2]
[327497435,1716125494144,-838.37,0.00029056,2]
[327497436,1716125494154,-4449.99,0.00029056,2]
[327497437,1716125494164,-522.1,0.00029056,2]
[327497438,1716125494177,-2017.93,0.00029057,2]
[327497439,1716125494186,-500.0,0.00029059,2]
[327497440,1716125494196,-500.0,0.00029059,2]
[327497441,1716125494206,-500.0,0.00029059,2]
[327497442,1716125494217,-500.0,0.00029059,2]
[327497443,1716125494226,-500.0,0.00029059,2]
[327497444,1716125494236,-474.14409693,0.0002906,7]
[327497445,1716125494247,-154.10962397,0.0002906,7]
[327497446,1716125494256,-173.75382498,0.0002906,7]
[327497447,1716125494266,-220.0,0.0002908,2]
[327497448,1716125494276,-474.14409693,0.00029092,7]
[327497449,1716125494286,-154.10962397,0.00029092,7]
[327497450,1716125494295,-173.75382498,0.00029092,7]
[327497451,1716125494304,-657.56,0.00029107,2]
[327497452,1716125494314,-506.18,0.00029107,2]
[327497453,1716125494323,-500.0,0.00029107,2]
[327497454,1716125494333,-500.0,0.00029107,2]
[327497455,1716125494342,-879.12,0.00029107,2]
[327497456,1716125494351,-671.24,0.00029107,2]
[327497457,1716125494360,-609.43,0.00029107,2]
[327497458,1716125494370,-2500.45,0.00029107,2]
[327497459,1716125494379,-843.99,0.00029107,2]
[327497460,1716125494388,-500.0,0.00029107,2]
[327497461,1716125494398,-500.0,0.00029107,2]
[327497462,1716125494407,-568.61,0.00029107,2]
[327497463,1716125494417,-817.19,0.00029107,2]
[327497464,1716125494426,-500.0,0.00029107,2]
[327497465,1716125494435,-854.39,0.00029107,2]
[327497466,1716125494445,-666.0,0.00029107,2]
[327497467,1716125494455,-637.12,0.00029107,2]
[327497468,1716125494464,-857.61,0.00029107,2]
[327497469,1716125494473,-395.9414807,0.00029107,2]
[327497470,1716125494483,-518.83,0.00029107,2]
[327497471,1716125494493,-726.23,0.00029107,2]
[327497472,1716125494502,-762.51,0.00029107,2]
[327497473,1716125494512,-1281.27,0.00029107,2]
[327497474,1716125494521,-1187.11,0.00029107,2]
[327497475,1716125494530,-820.48,0.00029107,2]
[327497476,1716125494539,-520.48003175,0.00029107,2]
[327497477,1716125494549,-1052.6,0.00029107,2]
[327497478,1716125494559,-763.43,0.00029107,2]
[327497479,1716125494570,-1150.72,0.00029107,2]
[327497480,1716125494579,-3667.38,0.00029107,2]
[327497481,1716125494589,-1211.58,0.00029107,2]
[327497482,1716125494598,-986.86,0.00029107,2]
[327497483,1716125494608,-372.34445486,0.00029107,2]
[327497484,1716125494617,-740.89,0.00029107,2]
[327497485,1716125494627,-500.0,0.00029107,2]
[327497486,1716125494637,-533.27,0.00029107,2]
[327497487,1716125494647,-975.8,0.00029107,2]
[327497488,1716125494657,-1384.87,0.00029107,2]
[327497489,1716125494666,-1006.42,0.00029107,2]
[327497490,1716125494676,-2304.66,0.00029107,2]
[327497491,1716125494686,-2722.15,0.00029107,2]
[327497492,1716125494695,-3116.58,0.00029107,2]
[327497493,1716125494705,-500.0,0.00029107,2]
[327497494,1716125494715,-942.59,0.00029107,2]
[327497495,1716125494725,-500.0,0.00029107,2]
[327497496,1716125494735,-15816.75,0.00029107,2]
[327497497,1716125494744,-849.34,0.00029107,2]
[327497498,1716125494755,-500.0,0.00029107,2]
[327497499,1716125494765,-1608.23,0.00029107,2]
[327497500,1716125494776,-500.0,0.00029107,2]
[327497501,1716125494785,-530.95,0.00029107,2]
[327497502,1716125494795,-9478.72,0.00029107,2]
[327497503,1716125494805,-500.0,0.00029109,7]
[327497504,1716125494815,-606.15,0.00029109,2]
[327497505,1716125494827,-815.2,0.00029109,2]
[327497506,1716125494836,-615.48,0.00029109,2]
[327497507,1716125494846,-725.95,0.00029109,2]
[327497508,1716125494856,-500.0,0.00029109,2]
[327497509,1716125494866,-988.92,0.00029109,2]
[327497510,1716125494876,-500.0,0.00029109,2]
[327497511,1716125494886,-780.74,0.00029109,2]
[327497512,1716125494896,-619.66,0.00029109,2]
[327497513,1716125494906,-500.0,0.00029109,2]
[327497514,1716125494916,-500.0,0.00029109,2]
[327497515,1716125494926,-609.52203465,0.00029109,2]
[327497516,1716125494936,-846.91,0.00029109,2]
[327497517,1716125494946,-982.33,0.00029109,2]
[327497518,1716125494956,-500.0,0.00029109,2]
[327497519,1716125494966,-1644.32,0.00029109,2]
[327497520,1716125494977,-1782.9,0.00029109,2]
[327497521,1716125494987,-500.0,0.00029109,2]
[327497522,1716125494997,-700.7,0.00029109,2]
[327497523,1716125495008,-1923.11,0.00029109,2]
[327497524,1716125495018,-1095.98,0.00029109,2]
[327497525,1716125495028,-1383.57,0.00029109,2]
[327497526,1716125495037,-1151.71,0.00029109,2]
[327497527,1716125495047,-1219.6,0.00029109,2]
[327497528,1716125495057,-848.32,0.00029109,2]
[327497529,1716125495067,-500.0,0.00029109,2]
[327497530,1716125495079,-777.11,0.00029109,2]
[327497531,1716125495089,-1055.0,0.00029109,2]
[327497532,1716125495099,-500.0,0.00029109,2]
[327497533,1716125495108,-512.59,0.00029109,2]
[327497534,1716125495118,-541.07,0.00029109,2]
[327497535,1716125495128,-828.51,0.00029109,2]
[327497536,1716125495138,-989.78,0.00029109,2]
[327497537,1716125495148,-1162.85,0.00029109,2]
[327497538,1716125495157,-500.0,0.00029109,2]
[327497539,1716125495168,-540.7,0.00029109,2]
[327497540,1716125495183,-3682.75,0.00029109,2]
[327497541,1716125495192,-500.0,0.00029109,2]
[327497542,1716125495202,-1892.05,0.00029109,2]
[327497543,1716125495214,-1015.08,0.00029109,2]
[327497544,1716125495223,-878.61,0.00029109,2]
[327497545,1716125495234,-871.12,0.00029109,2]
[327497546,1716125495244,-500.0,0.00029109,2]
[327497547,1716125495254,-1467.74,0.00029109,2]
[327497548,1716125495264,-500.0,0.00029109,2]
[327497549,1716125495274,-1893.57,0.00029109,2]
[327497550,1716125495283,-533.14,0.00029109,2]
[327497551,1716125495292,-500.0,0.00029109,2]
[327497552,1716125495302,-656.36,0.00029109,2]
[327497553,1716125495314,-615.22,0.00029109,2]
[327497554,1716125495326,-810.74,0.00029109,2]
[327497555,1716125495334,-997.13,0.00029109,2]
[327497556,1716125495344,-837.85,0.00029109,2]
[327497557,1716125495353,-674.79,0.00029109,2]
[327497558,1716125495363,-2150.8,0.00029109,2]
[327497559,1716125495373,-827.03,0.00029109,2]
[327497560,1716125495383,-2747.6,0.00029109,2]
[327497561,1716125495392,-1069.79,0.00029109,2]
[327497562,1716125495403,-4457.98,0.00029109,2]
[327497563,1716125495412,-925.95,0.00029109,2]
[327497564,1716125495421,-896.89,0.00029109,2]
[327497565,1716125495431,-997.04,0.00029109,2]
[327497566,1716125495440,-6546.3,0.00029109,2]
[327497567,1716125495450,-744.57,0.00029109,2]
[327497568,1716125495459,-1036.81,0.00029109,2]
[327497569,1716125495469,-500.0,0.00029109,2]
[327497570,1716125495478,-500.0,0.00029109,2]
[327497571,1716125495488,-2745.43,0.00029109,2]
[327497572,1716125495498,-500.0,0.00029109,2]
[327497573,1716125495508,-521.3,0.00029109,2]
[327497574,1716125495517,-1015.07,0.00029109,2]
[327497575,1716125495528,-150.0,0.0002911,7]
[327497576,1716125495537,-984.13315849,0.00029123,30]
[327497577,1716125495548,-474.14409693,0.00029124,7]
[327497578,1716125495557,-154.10962397,0.00029124,7]
[327497579,1716125495567,-173.75382498,0.00029124,7]
[327497580,1716125495578,-150.0,0.00029129,7]
[327497581,1716125495587,-474.14409693,0.00029156,7]
[327497582,1716125495596,-154.10962397,0.00029156,7]
[327497583,1716125495606,-173.75382498,0.00029156,7]
[327497584,1716125495615,-474.14409693,0.00029188,7]
[327497585,1716125495624,-154.10962397,0.00029188,7]
[327497586,1716125495634,-173.75382498,0.00029188,7]
[327497587,1716125495644,-206.0,0.0002919,2]
[327497588,1716125495654,-219.0,0.0002919,2]
[327497589,1716125495664,-474.14409693,0.0002922,7]
[327497590,1716125495673,-154.10962397,0.0002922,7]
[327497591,1716125495684,-173.75382498,0.0002922,7]
[327497592,1716125495694,-150.0,0.00029231,7]
[327497593,1716125495704,-984.13315849,0.00029233,30]
[327497594,1716125495714,-474.14409693,0.00029252,7]
[327497595,1716125495723,-154.10962397,0.00029252,7]
[327497596,1716125495733,-173.75382498,0.00029252,7]
[327497597,1716125495742,-180.35,0.00029254,120]
[327497598,1716125495752,-700.0,0.0002927,2]
[327497599,1716125495762,-151.0,0.0002928,2]
[327497600,1716125495771,-250.49088,0.0002928,2]
[327497601,1716125495781,-474.14409693,0.00029284,7]
[327497602,1716125495791,-154.10962397,0.00029284,7]
[327497603,1716125495802,-173.75382498,0.00029284,7]
[327497604,1716125495812,-150.0,0.00029308,7]
[327497605,1716125495950,-155.13107597,0.00029311,2]
[327497606,1716125495960,-275.67543935,0.00029311,2]
[327497607,1716125495970,-162.27188613,0.00029312,2]
[327497608,1716125495980,-300.38219322,0.00029313,2]
[327497609,1716125495990,-17312.97062714,0.00029313,2]
[327497610,1716125496000,-1005.99,0.00029314,2]
[327497611,1716125496011,-220.0,0.00029314,2]
[327497612,1716125496021,-220.0,0.00029314,2]
[327497613,1716125496031,-220.0,0.00029314,2]
[327497614,1716125496041,-220.0,0.00029314,2]
[327497615,1716125496051,-5000.0,0.00029314,2]
[327497616,1716125496062,-474.14409693,0.00029316,7]
[327497617,1716125496072,-154.10962397,0.00029316,7]
[327497618,1716125496086,-173.75382498,0.00029316,7]
[327497619,1716125496096,-564.57685171,0.0002933,2]
[327497620,1716125496107,-500.0,0.0002933,2]
[327497621,1716125496116,-500.0,0.0002933,2]
[327497622,1716125496127,-500.0,0.0002933,2]
[327497623,1716125496137,-500.0,0.0002933,2]
[327497624,1716125496147,-281.39294119,0.0002933,2]
[327497625,1716125496158,-500.0,0.0002933,2]
[327497626,1716125496172,-500.0,0.0002933,2]
[327497627,1716125496182,-500.0,0.0002933,2]
[327497628,1716125496193,-500.0,0.0002933,2]
[327497629,1716125496203,-599.87596341,0.0002933,2]
[327497630,1716125496215,-674.97,0.0002933,2]
[327497631,1716125496224,-500.0,0.0002933,2]
[327497632,1716125496235,-838.37,0.0002933,2]
[327497633,1716125496246,-4449.99,0.0002933,2]
[327497634,1716125496256,-522.1,0.0002933,2]
[327497635,1716125496266,-2017.93,0.00029331,2]
[327497636,1716125496276,-500.0,0.00029333,2]
[327497637,1716125496285,-500.0,0.00029333,2]
[327497638,1716125496295,-500.0,0.00029333,2]
[327497639,1716125496304,-500.0,0.00029333,2]
[327497640,1716125496314,-500.0,0.00029333,2]
[327497641,1716125496327,-150.0,0.00029333,7]
[327497642,1716125496336,-984.13315849,0.00029342,30]
[327497643,1716125496346,-474.14409693,0.00029348,7]
[327497644,1716125496356,-154.10962397,0.00029348,7]
[327497645,1716125496365,-173.75382498,0.00029348,7]
[327497646,1716125496375,-474.14409693,0.0002938,7]
[327497647,1716125496384,-154.10962397,0.0002938,7]
[327497648,1716125496394,-173.75382498,0.0002938,7]
[327497649,1716125496403,-657.56,0.00029381,2]
[327497650,1716125496413,-506.18,0.00029381,2]
[327497651,1716125496422,-500.0,0.00029381,2]
[327497652,1716125496432,-500.0,0.00029381,2]
[327497653,1716125496442,-879.12,0.00029381,2]
[327497654,1716125496451,-671.24,0.00029381,2]
[327497655,1716125496461,-609.43,0.00029381,2]
[327497656,1716125496471,-2500.45,0.00029381,2]
[327497657,1716125496480,-843.99,0.00029381,2]
[327497658,1716125496490,-500.0,0.00029381,2]
[327497659,1716125496499,-621.49641719,0.00029381,2]
[327497660,1716125496508,-568.61,0.00029381,2]
[327497661,1716125496519,-817.19,0.00029381,2]
[327497662,1716125496528,-500.0,0.00029381,2]
[327497663,1716125496538,-854.39,0.00029381,2]
[327497664,1716125496548,-666.0,0.00029381,2]
[327497665,1716125496558,-637.12,0.00029381,2]
[327497666,1716125496568,-857.61,0.00029381,2]
[327497667,1716125496580,-518.83,0.00029381,2]
[327497668,1716125496589,-726.23,0.00029381,2]
[327497669,1716125496599,-762.51,0.00029381,2]
[327497670,1716125496608,-1281.27,0.00029381,2]
[327497671,1716125496617,-1187.11,0.00029381,2]
[327497672,1716125496627,-820.48,0.00029381,2]
[327497673,1716125496637,-1052.6,0.00029381,2]
[327497674,1716125496647,-763.43,0.00029381,2]
[327497675,1716125496656,-1150.72,0.00029381,2]
[327497676,1716125496666,-3667.38,0.00029381,2]
[327497677,1716125496676,-1211.58,0.00029381,2]
[327497678,1716125496685,-986.86,0.00029381,2]
[327497679,1716125496695,-740.89,0.00029381,2]
[327497680,1716125496705,-500.0,0.00029381,2]
[327497681,1716125496714,-533.27,0.00029381,2]
[327497682,1716125496724,-975.8,0.00029381,2]
[327497683,1716125496734,-1384.87,0.00029381,2]
[327497684,1716125496744,-1006.42,0.00029381,2]
[327497685,1716125496753,-2304.66,0.00029381,2]
[327497686,1716125496763,-2722.15,0.00029381,2]
[327497687,1716125496772,-3116.58,0.00029381,2]
[327497688,1716125496782,-500.0,0.00029381,2]
[327497689,1716125496792,-942.59,0.00029381,2]
[327497690,1716125496802,-271.19521355,0.00029381,2]
[327497691,1716125496811,-15816.75,0.00029381,2]
[327497692,1716125496821,-849.34,0.00029381,2]
[327497693,1716125496835,-563.40622761,0.00029381,2]
[327497694,1716125496845,-1608.23,0.00029381,2]
[327497695,1716125496854,-500.0,0.00029381,2]
[327497696,1716125496864,-9478.72,0.00029381,2]
[327497697,1716125496873,-500.0,0.00029383,7]
[327497698,1716125496883,-606.15,0.00029383,2]
[327497699,1716125496893,-815.2,0.00029383,2]
[327497700,1716125496903,-615.48,0.00029383,2]
[327497701,1716125496913,-725.95,0.00029383,2]
[327497702,1716125496922,-642.30074333,0.00029383,2]
[327497703,1716125496933,-988.92,0.00029383,2]
[327497704,1716125496943,-500.0,0.00029383,2]
[327497705,1716125496953,-780.74,0.00029383,2]
[327497706,1716125496962,-619.66,0.00029383,2]
[327497707,1716125496972,-500.0,0.00029383,2]
[327497708,1716125496982,-500.0,0.00029383,2]
[327497709,1716125496991,-846.91,0.00029383,2]
[327497710,1716125497001,-982.33,0.00029383,2]
[327497711,1716125497011,-500.0,0.00029383,2]
[327497712,1716125497021,-1644.32,0.00029383,2]
[327497713,1716125497031,-1782.9,0.00029383,2]
[327497714,1716125497041,-500.0,0.00029383,2]
[327497715,1716125497050,-700.7,0.00029383,2]
[327497716,1716125497061,-1923.11,0.00029383,2]
[327497717,1716125497070,-1095.98,0.00029383,2]
[327497718,1716125497082,-1383.57,0.00029383,2]
[327497719,1716125497092,-1151.71,0.00029383,2]
[327497720,1716125497101,-1219.6,0.00029383,2]
[327497721,1716125497110,-848.32,0.00029383,2]
[327497722,1716125497119,-196.14774425,0.00029383,2]
[327497723,1716125497128,-777.11,0.00029383,2]
[327497724,1716125497138,-1055.0,0.00029383,2]
[327497725,1716125497147,-500.0,0.00029383,2]
[327497726,1716125497156,-512.59,0.00029383,2]
[327497727,1716125497166,-541.07,0.00029383,2]
[327497728,1716125497178,-828.51,0.00029383,2]
[327497729,1716125497187,-989.78,0.00029383,2]
[327497730,1716125497196,-1162.85,0.00029383,2]
[327497731,1716125497205,-516.71217928,0.00029383,2]
[327497732,1716125497216,-540.7,0.00029383,2]
[327497733,1716125497224,-3682.75,0.00029383,2]
[327497734,1716125497234,-597.4700791,0.00029383,2]
[327497735,1716125497243,-1892.05,0.00029383,2]
[327497736,1716125497254,-1015.08,0.00029383,2]
[327497737,1716125497264,-878.61,0.00029383,2]
[327497738,1716125497274,-871.12,0.00029383,2]
[327497739,1716125497286,-500.0,0.00029383,2]
[327497740,1716125497296,-1467.74,0.00029383,2]
[327497741,1716125497305,-500.0,0.00029383,2]
[327497742,1716125497314,-1893.57,0.00029383,2]
[327497743,1716125497326,-533.14,0.00029383,2]
[327497744,1716125497335,-500.0,0.00029383,2]
[327497745,1716125497344,-656.36,0.00029383,2]
[327497746,1716125497354,-615.22,0.00029383,2]
[327497747,1716125497363,-810.74,0.00029383,2]
[327497748,1716125497372,-997.13,0.00029383,2]
[327497749,1716125497381,-837.85,0.00029383,2]
[327497750,1716125497391,-674.79,0.00029383,2]
[327497751,1716125497400,-2150.8,0.00029383,2]
[327497752,1716125497409,-827.03,0.00029383,2]
[327497753,1716125497419,-2747.6,0.00029383,2]
[327497754,1716125497428,-1069.79,0.00029383,2]
[327497755,1716125497437,-4457.98,0.00029383,2]
[327497756,1716125497446,-925.95,0.00029383,2]
[327497757,1716125497455,-896.89,0.00029383,2]
[327497758,1716125497464,-997.04,0.00029383,2]
[327497759,1716125497473,-6546.3,0.00029383,2]
[327497760,1716125497482,-744.57,0.00029383,2]
[327497761,1716125497491,-1036.81,0.00029383,2]
[327497762,1716125497500,-500.0,0.00029383,2]
[327497763,1716125497509,-500.0,0.00029383,2]
[327497764,1716125497518,-2745.43,0.00029383,2]
[327497765,1716125497528,-500.0,0.00029383,2]
[327497766,1716125497537,-521.3,0.00029383,2]
[327497767,1716125497546,-1015.07,0.00029383,2]
[327497768,1716125497555,-474.14409693,0.00029412,7]
[327497769,1716125497565,-154.10962397,0.00029412,7]
[327497770,1716125497575,-173.75382498,0.00029412,7]
[327497771,1716125497585,-150.0,0.00029435,7]
[327497772,1716125497595,-474.14409693,0.00029444,7]
[327497773,1716125497604,-154.10962397,0.00029444,7]
[327497774,1716125497613,-173.75382498,0.00029444,7]
[327497775,1716125497623,-4800.0,0.00029463,7]
[327497776,1716125497632,-474.14409693,0.00029476,7]
[327497777,1716125497642,-154.10962397,0.00029476,7]
[327497778,1716125497652,-173.75382498,0.00029476,7]
[327497779,1716125497660,-984.13315849,0.00029479,30]
[327497780,1716125497670,-150.0,0.00029506,7]
[327497781,1716125497679,-474.14409693,0.00029508,7]
[327497782,1716125497688,-154.10962397,0.00029508,7]
[327497783,1716125497697,-173.75382498,0.00029508,7]
[327497784,1716125497706,-150.0,0.00029538,7]
[327497785,1716125497716,-474.14409693,0.0002954,7]
[327497786,1716125497725,-154.10962397,0.0002954,7]
[327497787,1716125497735,-173.75382498,0.0002954,7]
[327497788,1716125497744,-474.14409693,0.00029572,7]
[327497789,1716125497753,-154.10962397,0.00029572,7]
[327497790,1716125497763,-150.0,0.00029572,7]
[327497791,1716125497772,-173.75382498,0.00029572,7]
[327497792,1716125497781,-150.0,0.00029572,7]
[327497793,1716125497791,-150.0,0.00029572,7]
[327497794,1716125497800,-984.13315849,0.00029589,30]
[327497795,1716125497809,-611.36,0.000296,2]
[327497796,1716125497819,-732.44,0.000296,2]
[327497797,1716125497829,-647.26,0.000296,2]
[327497798,1716125497839,-300.536375,0.000296,2]
[327497799,1716125497848,-474.14409693,0.00029604,7]
[327497800,1716125497857,-154.10962397,0.00029604,7]
[327497801,1716125497866,-173.75382498,0.00029604,7]
[327497802,1716125497876,-500.0,0.00029604,2]
[327497803,1716125497885,-342.66421685,0.00029604,2]
[327497804,1716125497895,-500.0,0.00029604,2]
[327497805,1716125497904,-500.0,0.00029604,2]
[327497806,1716125497913,-500.0,0.00029604,2]
[327497807,1716125497922,-352.31347013,0.00029604,2]
[327497808,1716125497931,-500.0,0.00029604,2]
[327497809,1716125497941,-500.0,0.00029604,2]
[327497810,1716125497951,-674.97,0.00029604,2]
[327497811,1716125497959,-500.0,0.00029604,2]
[327497812,1716125497969,-838.37,0.00029604,2]
[327497813,1716125497978,-4449.99,0.00029604,2]
[327497814,1716125497989,-522.1,0.00029604,2]
[327497815,1716125497998,-2017.93,0.00029605,2]
[327497816,1716125498008,-500.0,0.00029607,2]
[327497817,1716125498017,-500.0,0.00029607,2]
[327497818,1716125498026,-500.0,0.00029607,2]
[327497819,1716125498036,-273.82,0.00029607,2]
[327497820,1716125498046,-500.0,0.00029607,2]
[327497821,1716125498056,-930.22,0.00029616,2]
[327497822,1716125498065,-474.14409693,0.00029636,7]
[327497823,1716125498075,-154.10962397,0.00029636,7]
[327497824,1716125498085,-173.75382498,0.00029636,7]
[327497825,1716125498095,-150.0,0.0002964,7]
[327497826,1716125498104,-657.56,0.00029655,2]
[327497827,1716125498115,-506.18,0.00029655,2]
[327497828,1716125498125,-500.0,0.00029655,2]
[327497829,1716125498135,-500.0,0.00029655,2]
[327497830,1716125498145,-879.12,0.00029655,2]
[327497831,1716125498154,-671.24,0.00029655,2]
[327497832,1716125498165,-609.43,0.00029655,2]
[327497833,1716125498178,-2500.45,0.00029655,2]
[327497834,1716125498188,-843.99,0.00029655,2]
[327497835,1716125498197,-500.0,0.00029655,2]
[327497836,1716125498207,-568.61,0.00029655,2]
[327497837,1716125498216,-817.19,0.00029655,2]
[327497838,1716125498227,-500.0,0.00029655,2]
[327497839,1716125498236,-854.39,0.00029655,2]
[327497840,1716125498246,-666.0,0.00029655,2]
[327497841,1716125498257,-637.12,0.00029655,2]
[327497842,1716125498268,-857.61,0.00029655,2]
[327497843,1716125498277,-518.83,0.00029655,2]
[327497844,1716125498287,-726.23,0.00029655,2]